[Event "Veteran-SM 65+ 2025"]
[Site "Uppsala, Sweden"]
[Date "2025.07.04"]
[Round "7.7"]
[White "Green, Per"]
[Black "Magnussen, Pal"]
[Result "1-0"]
[TimeControl "90 min for 40 move + 30 min with an increment of 30 sec starting move 1"]
[WhiteFideId "1703811"]
[BlackFideId "1711814"]
[WhiteElo "1954"]
[BlackElo "1954"]

1. c4 {[%clk 01:30:16]} {[%emt 00:00:44]} e5 {[%clk 01:29:20]} {[%emt
00:01:41]} 2. g3 {[%clk 01:30:23]} {[%emt 00:00:23]} Nc6 {[%clk 01:28:04]}
{[%emt 00:01:46]} 3. Bg2 {[%clk 01:30:24]} {[%emt 00:00:29]} Nf6 {[%clk
01:27:06]} {[%emt 00:01:28]} 4. Nf3 {[%clk 01:30:18]} {[%emt 00:00:35]} d5
{[%clk 01:25:12]} {[%emt 00:02:25]} 5. cxd5 {[%clk 01:30:34]} {[%emt 00:00:14]}
Nxd5 {[%clk 01:21:31]} {[%emt 00:04:11]} 6. Nc3 {[%clk 01:30:54]} {[%emt
00:00:10]} Be6 {[%clk 01:17:53]} {[%emt 00:04:08]} 7. O-O {[%clk 01:28:58]}
{[%emt 00:02:25]} Be7 {[%clk 01:15:37]} {[%emt 00:02:46]} 8. d4 {[%clk
01:26:04]} {[%emt 00:03:25]} Nxc3 {[%clk 01:11:52]} {[%emt 00:04:15]} 9. bxc3
{[%clk 01:26:12]} {[%emt 00:00:22]} e4 {[%clk 01:09:25]} {[%emt 00:02:57]} 10.
Nd2 {[%clk 01:24:43]} {[%emt 00:01:58]} f5 {[%clk 00:59:05]} {[%emt 00:10:51]}
11. Qa4 {[%clk 01:23:08]} {[%emt 00:02:05]} O-O {[%clk 00:58:01]} {[%emt
00:01:34]} 12. Rb1 {[%clk 01:20:02]} {[%emt 00:03:36]} Rb8 {[%clk 00:48:28]}
{[%emt 00:10:02]} 13. e3 {[%clk 01:18:19]} {[%emt 00:02:13]} a6 {[%clk
00:43:39]} {[%emt 00:05:20]} 14. f3 {[%clk 00:58:48]} {[%emt 00:19:59]} exf3
{[%clk 00:36:47]} {[%emt 00:07:23]} 15. Nxf3 {[%clk 00:55:49]} {[%emt
00:03:29]} Bd5 {[%clk 00:35:52]} {[%emt 00:01:25]} 16. Bd2 {[%clk 00:52:35]}
{[%emt 00:03:44]} b5 {[%clk 00:32:35]} {[%emt 00:03:48]} 17. Qd1 {[%clk
00:44:31]} {[%emt 00:08:33]} Qc8 {[%clk 00:29:01]} {[%emt 00:04:04]} 18. a4
{[%clk 00:43:51]} {[%emt 00:01:10]} Qe6 {[%clk 00:28:26]} {[%emt 00:01:05]} 19.
axb5 {[%clk 00:43:37]} {[%emt 00:00:45]} axb5 {[%clk 00:28:49]} {[%emt
00:00:07]} 20. Re1 {[%clk 00:37:08]} {[%emt 00:06:58]} g5 {[%clk 00:25:45]}
{[%emt 00:03:34]} 21. e4 {[%clk 00:34:11]} {[%emt 00:03:27]} Bxe4 {[%clk
00:21:30]} {[%emt 00:04:46]} 22. Nxg5 {[%clk 00:29:52]} {[%emt 00:04:48]} Bxg5
{[%clk 00:20:54]} {[%emt 00:01:07]} 23. Bxg5 {[%clk 00:30:09]} {[%emt
00:00:12]} Qd5 {[%clk 00:19:01]} {[%emt 00:02:24]} 24. Bxe4 {[%clk 00:29:59]}
{[%emt 00:00:40]} fxe4 {[%clk 00:18:54]} {[%emt 00:00:36]} 25. Qg4 {[%clk
00:29:15]} {[%emt 00:01:13]} Kh8 {[%clk 00:15:46]} {[%emt 00:03:40]} 26. Bh6
{[%clk 00:26:58]} {[%emt 00:02:46]} Rg8 {[%clk 00:15:30]} {[%emt 00:00:46]} 27.
Qxe4 {[%clk 00:27:09]} {[%emt 00:00:19]} Qd7 {[%clk 00:14:12]} {[%emt
00:01:49]} 28. d5 {[%clk 00:24:55]} {[%emt 00:02:42]} Qh3 {[%clk 00:12:08]}
{[%emt 00:02:36]} 29. Bf4 {[%clk 00:24:34]} {[%emt 00:00:50]} Rbe8 {[%clk
00:11:52]} {[%emt 00:00:47]} 30. Qxe8 {[%clk 00:24:02]} {[%emt 00:01:01]} Rxe8
{[%clk 00:12:17]} {[%emt 00:00:05]} 31. Rxe8+ {[%clk 00:24:29]} {[%emt
00:00:03]} Kg7 {[%clk 00:12:36]} {[%emt 00:00:11]} 32. dxc6 {[%clk 00:24:43]}
{[%emt 00:00:17]} Qf5 {[%clk 00:12:07]} {[%emt 00:00:59]} 33. Rbe1 {[%clk
00:23:50]} {[%emt 00:01:22]} Qc5+ {[%clk 00:11:10]} {[%emt 00:01:27]} 34. R8e3
{[%clk 00:23:43]} {[%emt 00:00:36]} h5 {[%clk 00:09:31]} {[%emt 00:02:11]} 35.
Bxc7 {[%clk 00:23:23]} {[%emt 00:00:49]} h4 {[%clk 00:09:13]} {[%emt 00:00:48]}
36. gxh4 {[%clk 00:22:50]} {[%emt 00:01:03]} Kg6 {[%clk 00:08:44]} {[%emt
00:01:00]} 37. Be5 {[%clk 00:22:51]} {[%emt 00:00:28]} Qxc6 {[%clk 00:07:51]}
{[%emt 00:01:23]} 38. Bd4 {[%clk 00:22:04]} {[%emt 00:01:16]} 1-0

[Event "Veteran-SM 65+ 2025"]
[Site "Uppsala, Sweden"]
[Date "2025.07.04"]
[Round "7.8"]
[White "Salholm, Soren"]
[Black "Haggvik, Kjell"]
[Result "1/2-1/2"]
[TimeControl "90 min for 40 move + 30 min with an increment of 30 sec starting move 1"]
[WhiteFideId "1722824"]
[BlackFideId "1776495"]
[WhiteElo "1887"]
[BlackElo "1932"]

1. e4 {[%clk 01:30:41]} {[%emt 00:00:18]} Nf6 {[%clk 01:30:52]} {[%emt
00:00:09]} 2. e5 {[%clk 01:30:39]} {[%emt 00:00:32]} Nd5 {[%clk 01:31:15]} 3.
d4 {[%clk 01:30:52]} {[%emt 00:00:24]} d6 {[%clk 01:31:38]} 4. exd6 {[%clk
01:30:27]} {[%emt 00:01:02]} exd6 {[%clk 01:31:57]} 5. Nf3 {[%clk 01:29:42]}
{[%emt 00:01:26]} Be7 {[%clk 01:32:11]} 6. Nc3 {[%clk 01:24:00]} {[%emt
00:06:28]} Nxc3 {[%clk 01:29:39]} {[%emt 00:03:02]} 7. bxc3 {[%clk 01:24:23]}
{[%emt 00:00:08]} Bf5 {[%clk 01:26:15]} {[%emt 00:03:53]} 8. Bd3 {[%clk
01:23:47]} {[%emt 00:01:06]} Bxd3 {[%clk 01:26:31]} {[%emt 00:00:14]} 9. Qxd3
{[%clk 01:24:08]} {[%emt 00:00:09]} O-O {[%clk 01:25:49]} {[%emt 00:01:13]} 10.
O-O {[%clk 01:23:30]} {[%emt 00:01:07]} Bf6 {[%clk 01:25:03]} {[%emt 00:01:16]}
11. Bf4 {[%clk 01:20:43]} {[%emt 00:03:17]} Nc6 {[%clk 01:16:06]} {[%emt
00:09:28]} 12. h3 {[%clk 01:15:13]} {[%emt 00:05:59]} g6 {[%clk 01:11:58]}
{[%emt 00:04:38]} 13. Rab1 {[%clk 01:12:08]} {[%emt 00:03:35]} b6 {[%clk
01:11:21]} {[%emt 00:01:07]} 14. Nd2 {[%clk 00:56:03]} {[%emt 00:16:33]} d5
{[%clk 00:59:27]} {[%emt 00:12:26]} 15. Qg3 {[%clk 00:52:58]} {[%emt 00:03:35]}
Bh4 {[%clk 00:55:34]} {[%emt 00:04:23]} 16. Qh2 {[%clk 00:48:56]} {[%emt
00:04:32]} Rc8 {[%clk 00:54:26]} {[%emt 00:01:38]} 17. Rbe1 {[%clk 00:43:32]}
{[%emt 00:05:52]} Bf6 {[%clk 00:48:01]} {[%emt 00:06:57]} 18. Nf3 {[%clk
00:36:40]} {[%emt 00:07:22]} Na5 {[%emt 00:04:40]} 19. Bh6 {[%clk 00:29:01]}
{[%emt 00:08:04]} Re8 {[%clk 00:38:51]} {[%emt 00:05:35]} 20. Qf4 {[%clk
00:28:19]} {[%emt 00:01:11]} Rxe1 {[%clk 00:38:27]} {[%emt 00:00:54]} 21. Rxe1
{[%clk 00:28:27]} {[%emt 00:00:23]} Bg7 {[%clk 00:37:27]} {[%emt 00:01:30]} 22.
Ng5 {[%clk 00:25:23]} Qd7 {[%clk 00:29:21]} {[%emt 00:12:10]} 23. Bxg7 {[%clk
00:17:51]} Kxg7 {[%clk 00:29:45]} {[%emt 00:08:09]} 24. Nf3 {[%clk 00:16:58]}
{[%emt 00:01:22]} Nc4 {[%clk 00:21:57]} {[%emt 00:08:18]} 25. Ne5 {[%clk
00:16:38]} Qe6 {[%clk 00:19:56]} {[%emt 00:03:21]} 26. Kf1 {[%clk 00:11:46]}
Re8 {[%clk 00:09:20]} {[%emt 00:16:28]} 27. Nd3 {[%clk 00:08:38]} {[%emt
00:03:39]} Qd7 {[%clk 00:09:18]} {[%emt 00:00:32]} 28. Rxe8 {[%clk 00:08:16]}
{[%emt 00:00:51]} Qxe8 {[%clk 00:09:44]} {[%emt 00:00:05]} 29. Qxc7 {[%clk
00:07:45]} {[%emt 00:01:00]} Qb5 {[%clk 00:09:45]} {[%emt 00:00:29]} 30. Kg1
{[%clk 00:04:42]} {[%emt 00:03:33]} Qb1+ {[%emt 00:01:14]} 31. Kh2 {[%clk
00:04:42]} {[%emt 00:00:02]} Qxc2 {[%clk 00:08:16]} 1/2-1/2

[Event "Veteran-SM 65+ 2025"]
[Site "Uppsala, Sweden"]
[Date "2025.07.05"]
[Round "8.1"]
[White "Johansson, Jan"]
[Black "Franchuck, Ivan"]
[Result "1-0"]
[TimeControl "90 min for 40 move + 30 min with an increment of 30 sec starting move 1"]
[WhiteTitle "IM"]
[WhiteFideId "1700103"]
[BlackFideId "14140187"]
[WhiteElo "2258"]
[BlackElo "2006"]

1. e4 {[%clk 01:30:55]} {[%emt 00:00:04]} c6 {[%clk 01:30:48]} {[%emt
00:00:12]} 2. d4 {[%clk 01:31:16]} {[%emt 00:00:10]} d5 {[%clk 01:31:13]}
{[%emt 00:00:05]} 3. e5 {[%clk 01:31:40]} {[%emt 00:00:06]} Bf5 {[%clk
01:31:31]} {[%emt 00:00:11]} 4. Nf3 {[%clk 01:32:03]} {[%emt 00:00:07]} e6
{[%clk 01:31:41]} {[%emt 00:00:20]} 5. Be2 {[%clk 01:32:19]} {[%emt 00:00:14]}
c5 {[%clk 01:31:49]} {[%emt 00:00:22]} 6. Be3 {[%clk 01:24:09]} {[%emt
00:08:40]} Qb6 {[%clk 01:31:52]} {[%emt 00:00:27]} 7. Nbd2 {[%clk 01:22:24]}
{[%emt 00:02:16]} Nc6 {[%emt 00:02:37]} 8. dxc5 {[%emt 00:03:49]} Bxc5 {[%clk
01:25:40]} {[%emt 00:00:16]} 9. Bxc5 {[%clk 01:22:48]} {[%emt 00:00:05]} Qxc5
{[%clk 01:25:48]} {[%emt 00:00:22]} 10. c4 {[%clk 01:22:56]} {[%emt 00:00:23]}
Nge7 {[%clk 01:25:19]} {[%emt 00:00:58]} 11. O-O {[%clk 01:21:30]} {[%emt
00:01:57]} O-O {[%clk 01:25:11]} {[%emt 00:00:37]} 12. Rc1 {[%clk 01:15:10]}
{[%emt 00:06:51]} Rfd8 {[%clk 01:20:35]} {[%emt 00:05:06]} 13. Qb3 {[%clk
01:06:20]} {[%emt 00:09:20]} Qb4 {[%clk 01:19:19]} {[%emt 00:01:45]} 14. cxd5
{[%clk 00:50:01]} {[%emt 00:16:50]} Nxd5 {[%clk 01:18:58]} {[%emt 00:00:52]} 15.
Bb5 {[%clk 00:38:57]} {[%emt 00:11:33]} Qxb3 {[%clk 01:14:06]} {[%emt
00:05:21]} 16. Nxb3 {[%clk 00:37:42]} {[%emt 00:01:46]} Ncb4 {[%clk 01:13:54]}
{[%emt 00:00:41]} 17. Nc5 {[%clk 00:27:49]} {[%emt 00:10:23]} b6 {[%clk
01:08:39]} {[%emt 00:05:46]} 18. Nb7 {[%clk 00:23:48]} {[%emt 00:04:30]} Rdc8
{[%clk 01:08:19]} {[%emt 00:00:49]} 19. Rxc8+ {[%clk 00:23:00]} {[%emt
00:01:19]} Rxc8 {[%clk 01:08:37]} {[%emt 00:00:13]} 20. Nd6 {[%clk 00:23:16]}
{[%emt 00:00:12]} Rc5 {[%clk 01:07:28]} {[%emt 00:01:39]} 21. a3 {[%clk
00:12:14]} {[%emt 00:11:34]} Nd3 {[%clk 01:06:50]} {[%emt 00:01:08]} 22. b4
{[%clk 00:08:42]} {[%emt 00:04:02]} Rc3 {[%clk 01:06:53]} {[%emt 00:00:27]} 23.
Ra1 {[%clk 00:08:02]} {[%emt 00:01:10]} Bg6 {[%clk 01:04:51]} {[%emt 00:02:32]}
24. h3 {[%clk 00:06:30]} {[%emt 00:02:01]} f6 {[%clk 01:04:54]} {[%emt
00:00:27]} 25. exf6 {[%clk 00:06:06]} {[%emt 00:00:55]} gxf6 {[%clk 01:05:14]}
{[%emt 00:00:09]} 26. Nd4 {[%clk 00:03:41]} {[%emt 00:02:55]} Kf8 {[%clk
01:03:10]} {[%emt 00:02:34]} 27. Ne2 {[%clk 00:00:38]} {[%emt 00:03:33]} Rc7
{[%clk 01:01:41]} {[%emt 00:01:59]} 28. Ba4 {[%clk 00:00:53]} {[%emt 00:00:16]}
a6 {[%clk 01:01:00]} {[%emt 00:01:11]} 29. Bb3 {[%clk 00:01:14]} {[%emt
00:00:08]} b5 {[%clk 01:00:08]} {[%emt 00:01:23]} 30. Ng3 {[%clk 00:00:39]}
{[%emt 00:01:04]} Rc3 {[%clk 00:57:31]} {[%emt 00:03:07]} 31. Bxd5 {[%clk
00:00:32]} {[%emt 00:00:38]} exd5 {[%clk 00:57:46]} {[%emt 00:00:14]} 32. h4
{[%clk 00:00:33]} {[%emt 00:00:30]} Ke7 {[%clk 00:54:39]} {[%emt 00:03:36]} 33.
Ndf5+ {[%clk 00:00:54]} {[%emt 00:00:10]} Ke6 {[%clk 00:54:11]} {[%emt
00:00:57]} 34. Nd4+ {[%clk 00:01:06]} {[%emt 00:00:18]} Kd6 {[%clk 00:53:26]}
{[%emt 00:01:14]} 35. a4 {[%clk 00:01:23]} {[%emt 00:00:14]} Rc4 {[%clk
00:53:08]} {[%emt 00:00:49]} 36. axb5 {[%clk 00:01:50]} {[%emt 00:00:03]} axb5
{[%clk 00:51:53]} {[%emt 00:01:44]} 37. Ra6+ {[%clk 00:02:11]} {[%emt
00:00:09]} Kd7 {[%clk 00:49:30]} {[%emt 00:02:54]} 38. Nxb5 {[%clk 00:02:15]}
{[%emt 00:00:26]} Nxb4 {[%clk 00:48:48]} {[%emt 00:01:11]} 39. h5 {[%clk
00:02:09]} {[%emt 00:00:36]} Rc1+ {[%clk 00:48:37]} {[%emt 00:00:41]} 40. Kh2
{[%clk 00:02:33]} {[%emt 00:00:06]} Bd3 {[%clk 00:48:52]} {[%emt 00:00:15]} 41.
Ra7+ {[%clk 00:02:42]} {[%emt 00:00:22]} Ke6 {[%clk 00:44:47]} {[%emt
00:01:30]} 42. Nd4+ {[%clk 00:30:14]} {[%emt 00:06:03]} Ke5 {[%clk 01:14:56]}
{[%emt 00:00:20]} 43. Nf3+ {[%clk 00:28:23]} {[%emt 00:02:21]} Kd6 {[%clk
01:12:02]} {[%emt 00:03:24]} 44. h6 {[%clk 00:28:08]} {[%emt 00:00:45]} Bg6
{[%clk 01:11:03]} {[%emt 00:01:29]} 45. Nh4 {[%clk 00:24:27]} {[%emt 00:04:11]}
Bd3 {[%clk 01:10:49]} {[%emt 00:00:44]} 46. Ngf5+ {[%clk 00:23:38]} {[%emt
00:01:20]} Ke5 {[%clk 01:08:07]} {[%emt 00:03:12]} 47. Re7+ {[%clk 00:20:47]}
{[%emt 00:03:20]} Kf4 {[%clk 01:08:20]} {[%emt 00:00:16]} 48. g3+ {[%clk
00:21:00]} {[%emt 00:00:18]} Kg5 {[%emt 00:01:40]} 49. Rg7+ {[%emt 00:00:14]}
1-0

[Event "Veteran-SM 65+ 2025"]
[Site "Uppsala, Sweden"]
[Date "2025.07.05"]
[Round "8.2"]
[White "Marttala, Thomas"]
[Black "Korning, Peter"]
[Result "1-0"]
[TimeControl "90 min for 40 move + 30 min with an increment of 30 sec starting move 1"]
[WhiteFideId "1701118"]
[BlackFideId "1723332"]
[WhiteElo "2123"]
[BlackElo "1944"]

1. d4 {[%clk 01:30:01]} {[%emt 00:00:57]} d5 {[%clk 01:30:52]} {[%emt
00:00:08]} 2. Nf3 {[%clk 01:30:09]} {[%emt 00:00:22]} Nf6 {[%clk 01:31:13]}
{[%emt 00:00:10]} 3. g3 {[%clk 01:29:59]} {[%emt 00:00:39]} c5 {[%clk
01:29:19]} {[%emt 00:02:24]} 4. Bg2 {[%clk 01:29:54]} {[%emt 00:00:35]} Nc6
{[%clk 01:29:33]} {[%emt 00:00:16]} 5. O-O {[%clk 01:30:17]} {[%emt 00:00:07]}
e6 {[%clk 01:29:03]} {[%emt 00:01:00]} 6. dxc5 {[%clk 01:21:20]} {[%emt
00:09:28]} Bxc5 {[%clk 01:27:38]} {[%emt 00:01:54]} 7. c4 {[%clk 01:21:39]}
{[%emt 00:00:12]} O-O {[%clk 01:25:04]} {[%emt 00:03:03]} 8. Bg5 {[%clk
01:10:33]} {[%emt 00:11:37]} h6 {[%clk 01:01:46]} {[%emt 00:23:48]} 9. Bxf6
{[%clk 01:10:36]} {[%emt 00:00:27]} Qxf6 {[%clk 01:02:13]} {[%emt 00:00:03]} 10.
cxd5 {[%clk 01:05:24]} {[%emt 00:05:41]} exd5 {[%clk 01:01:53]} {[%emt
00:00:51]} 11. Nc3 {[%clk 01:04:40]} {[%emt 00:01:14]} d4 {[%clk 00:56:18]}
{[%emt 00:06:04]} 12. Ne4 {[%clk 00:59:22]} {[%emt 00:05:49]} Qe7 {[%clk
00:56:04]} {[%emt 00:00:44]} 13. Nxc5 {[%clk 00:56:38]} {[%emt 00:03:14]} Qxc5
{[%clk 00:56:30]} {[%emt 00:00:04]} 14. Ne1 {[%clk 00:56:51]} {[%emt 00:00:16]}
Bf5 {[%clk 00:48:07]} {[%emt 00:08:53]} 15. Qd2 {[%clk 00:43:32]} {[%emt
00:13:50]} Rad8 {[%clk 00:42:16]} {[%emt 00:06:21]} 16. Nd3 {[%clk 00:37:42]}
{[%emt 00:06:21]} Bxd3 {[%clk 00:32:56]} {[%emt 00:09:49]} 17. exd3 {[%clk
00:37:47]} {[%emt 00:00:25]} Rfe8 {[%clk 00:26:41]} {[%emt 00:06:45]} 18. Rac1
{[%clk 00:28:07]} {[%emt 00:10:08]} Qb4 {[%clk 00:20:13]} {[%emt 00:06:58]} 19.
Rfd1 {[%clk 00:28:18]} {[%emt 00:00:19]} Qxd2 {[%clk 00:15:03]} {[%emt
00:05:42]} 20. Rxd2 {[%clk 00:28:34]} {[%emt 00:00:13]} Rd6 {[%clk 00:10:27]}
{[%emt 00:05:06]} 21. Kf1 {[%clk 00:27:02]} {[%emt 00:02:02]} Kf8 {[%clk
00:09:29]} {[%emt 00:01:29]} 22. Rc4 {[%clk 00:15:49]} {[%emt 00:11:43]} a5
{[%clk 00:04:29]} {[%emt 00:05:31]} 23. Bxc6 {[%clk 00:13:41]} {[%emt
00:01:44]} bxc6 {[%clk 00:03:45]} {[%emt 00:02:08]} 24. Rdc2 {[%clk 00:12:26]}
{[%emt 00:01:44]} Rb8 {[%clk 00:02:51]} {[%emt 00:01:23]} 25. b3 {[%clk
00:11:53]} {[%emt 00:01:04]} Rb6 {[%clk 00:02:28]} {[%emt 00:00:54]} 26. Rc5
{[%clk 00:10:46]} {[%emt 00:01:36]} Ra6 {[%clk 00:01:23]} {[%emt 00:01:36]} 27.
R2c4 {[%clk 00:10:36]} {[%emt 00:00:39]} Ke7 {[%clk 00:01:28]} {[%emt
00:00:25]} 28. Ra4 {[%clk 00:09:25]} {[%emt 00:01:41]} Rd5 {[%clk 00:01:45]}
{[%emt 00:00:13]} 29. Rxd5 {[%clk 00:09:09]} {[%emt 00:00:46]} cxd5 {[%clk
00:02:14]} 30. Rxd4 {[%clk 00:06:19]} {[%emt 00:03:21]} Kd6 {[%clk 00:02:42]}
{[%emt 00:00:02]} 31. Ra4 {[%clk 00:06:08]} {[%emt 00:00:42]} Kc6 {[%clk
00:00:45]} {[%emt 00:02:26]} 32. b4 {[%clk 00:05:38]} {[%emt 00:01:00]} Kb7
{[%clk 00:00:49]} {[%emt 00:00:26]} 33. Rxa5 {[%clk 00:05:42]} {[%emt
00:00:26]} Rb6 {[%clk 00:00:59]} {[%emt 00:00:21]} 34. a3 {[%clk 00:06:01]}
{[%emt 00:00:11]} Kc6 {[%clk 00:01:21]} {[%emt 00:00:07]} 35. Ke2 {[%clk
00:06:13]} {[%emt 00:00:18]} d4 {[%clk 00:01:30]} {[%emt 00:00:21]} 36. Kf3
{[%clk 00:06:29]} {[%emt 00:00:14]} Rb7 {[%clk 00:01:14]} {[%emt 00:00:46]} 37.
Ke4 {[%clk 00:05:52]} {[%emt 00:01:06]} 1-0

[Event "Veteran-SM 65+ 2025"]
[Site "Uppsala, Sweden"]
[Date "2025.07.05"]
[Round "8.3"]
[White "Sigeman, Johan"]
[Black "Larsson, Per-Olov"]
[Result "1/2-1/2"]
[TimeControl "90 min for 40 move + 30 min with an increment of 30 sec starting move 1"]
[WhiteFideId "1705601"]
[BlackFideId "1717774"]
[WhiteElo "2012"]
[BlackElo "1914"]

1. d4 {[%clk 01:30:41]} {[%emt 00:00:18]} Nf6 {[%clk 01:30:41]} {[%emt
00:00:19]} 2. Nf3 {[%clk 01:31:01]} {[%emt 00:00:10]} d5 {[%clk 01:30:48]}
{[%emt 00:00:23]} 3. g3 {[%clk 01:31:15]} {[%emt 00:00:17]} e6 {[%clk
01:30:39]} {[%emt 00:00:39]} 4. Bg2 {[%clk 01:31:08]} {[%emt 00:00:36]} Be7
{[%clk 01:30:39]} {[%emt 00:00:30]} 5. O-O {[%clk 01:31:19]} {[%emt 00:00:19]}
O-O {[%clk 01:30:48]} {[%emt 00:00:21]} 6. c4 {[%clk 01:31:22]} {[%emt
00:00:28]} dxc4 {[%clk 01:30:16]} {[%emt 00:01:02]} 7. Qc2 {[%clk 01:28:17]}
{[%emt 00:03:35]} a6 {[%clk 01:29:31]} {[%emt 00:01:15]} 8. a4 {[%clk
01:28:18]} {[%emt 00:00:29]} Nbd7 {[%clk 01:27:36]} {[%emt 00:02:24]} 9. Qxc4
{[%clk 01:25:35]} {[%emt 00:03:13]} c5 {[%clk 01:26:12]} {[%emt 00:01:54]} 10.
dxc5 {[%clk 01:17:28]} {[%emt 00:08:37]} Bxc5 {[%clk 01:24:01]} {[%emt
00:02:41]} 11. Nc3 {[%clk 01:09:04]} {[%emt 00:08:55]} b5 {[%clk 01:16:28]}
{[%emt 00:08:03]} 12. Qh4 {[%clk 01:02:38]} {[%emt 00:06:55]} b4 {[%clk
01:10:30]} {[%emt 00:06:29]} 13. Ne4 {[%clk 01:02:47]} {[%emt 00:00:20]} Nxe4
{[%clk 01:09:21]} {[%emt 00:01:39]} 14. Qxe4 {[%clk 01:03:15]} {[%emt
00:00:02]} Ra7 {[%clk 01:05:38]} {[%emt 00:04:14]} 15. Bg5 {[%clk 00:54:49]}
{[%emt 00:08:56]} Qb6 {[%clk 01:02:35]} {[%emt 00:03:33]} 16. a5 {[%clk
00:45:45]} {[%emt 00:09:34]} Qb5 {[%clk 00:58:05]} {[%emt 00:04:59]} 17. Rfd1
{[%clk 00:39:54]} {[%emt 00:06:20]} 1/2-1/2